Workbook

Sheet Home
L9: The Total Economic Impact™ of Microsoft Application Virtualization (App-V)
M24: Learn more about Forrester's TEI methodology
C37: Use these links to obtain your copy of the Forrester case study, The Total Economic Impactt™ of Microsoft Application Virtualization (App-V) and the Business Insights Webcast:
I39: Forrester case study
I41: Webcast: Application Virtualization (App-V)

Sheet Overview
B2: Interactive Model of The Total Economic Impact™ Of Microsoft Application Virtualization (App-V)
C6: Executive summary:
C8: In March 2010, Microsoft commissioned Forrester Consulting to examine the total economic impact and potential return on investment (ROI) that enterprises may expect to realize by deploying Microsoft App-V, part of the Microsoft Desktop Optimization Pack (MDOP) suite of desktop and infrastructure management tools. To understand the financial impact of investing in MDOP and deploying App-V, Forrester conducted in-depth interviews with five Microsoft customers that have extensive experience with the product and compiled their results and forward-looking expectations into a case study based on a composite organization that encompasses the characteristics of the companies interviewed in the study.
C12: Purpose:
C14: The purpose of the study and this companion ROI calculator is to provide readers with a framework to evaluate the potential financial impact of Microsoft App-V on their organizations. Forrester’s aim is to clearly show all calculations and assumptions used in the analysis. Readers should use this study to better understand and communicate a business case for deploying Microsoft App-V, part of the MDOP dynamic desktop tool suite.
C18: TEI methodology:
C20: TEI not only measures costs and cost reduction (areas that are typically accounted for within IT) but also weighs the enabling value of a technology in increasing the effectiveness of overall business processes. For this study, Forrester employed four fundamental elements of TEI in modeling the financial impact of producing a TEI study: 1) cost and cost reduction, 2) benefits to the entire organization, 3) risk, and 4) flexibility. Forrester’s TEI methodology provides a complete picture of the total economic impact of technology investment decisions. Please see "The Total Economic Impact™ Of Microsoft Application Virtualization (App-V) for additional information on the TEI methodology.
C26: Keys:
F28: Orange boxes are User Inputs.
F30: Green boxes are Default Values provided by Forrester Consulting. Forrester applied industry research to knowledge of the vendor solution in order to derive the default values.
F34: Blue boxes are Calculated Values and are not changeable.
C36: Approach:
C38: Forrester used a five-step approach for this study: 1. Forrester gathered data from existing Forrester research relative to Microsoft and the application virtualization platforms market in general. 2. Forrester interviewed Microsoft marketing and sales personnel to fully understand the value proposition of Microsoft App-V. 3. Forrester conducted a series of in-depth interviews with 5 enterprise customers currently using Microsoft solutions. 4. Forrester constructed a financial model representative of the interviews. This model can be found in the TEI Framework section below. 5. Forrester created a composite organization based on the interviews and populated the financial framework using data from the interviews.
C47: Disclosure:
C49: The user should be aware of the following: 1. The study was commissioned by Microsoft and delivered by the Forrester Consulting group. 2. Microsoft reviewed and provided feedback to Forrester, but Forrester maintains editorial control over the study. 3. The customer names for the interviews were provided by Microsoft, but interviews were conducted solely between Forrester and the customers. 4. Forrester makes no assumptions as to the potential return on investment that other organizations will receive. Forrester strongly advises that readers should use their own estimates within the framework provided to determine the value of an investment in Microsoft MDOP and deployment of App-V. 5. This study is not meant to be used as a competitive product analysis.
C58: Disclaimer:
C60: This tool was developed for use as a Microsoft Excel 2003/2007 workbook operating on a Microsoft Windows XP platform. Although great care has been taken to ensure the accuracy and completeness of this model, Microsoft and Forrester Research are unable to accept any legal responsibility for any actions taken on the basis of the information contained herein. The tool is provided ‘AS IS,’ and Forrester and Microsoft make no warranties of any kind. Use, disclosure, or reproduction is prohibited without the prior express written permission of Microsoft Forrester Consulting developed this commissioned business case model in March 2010 exclusively for Microsoft. Microsoft is not permitted to change the calculations or equations. Forrester believes that this analysis is representative of what companies may achieve by deploying App-V. The information and results in this document are only an estimate of potential costs and savings. Actual results will vary and may be affected by individual human factors/interactions, implementation of alternate processes and procedures or unanticipated events. Forrester does not endorse Microsoft nor its offerings.
C69: Forrester Copyright:
C71: © 2010, Forrester Research, Inc. All rights reserved. Unauthorized reproduction is strictly prohibited. Information is based on best available resources. Opinions reflect judgment at the time and are subject to change. Forrester®, Technographics®, Forrester Wave, RoleView, TechRadar, and Total Economic Impact are trademarks of Forrester Research, Inc. All other trademarks are the property of their respective companies. For additional information, go to www.forrester.com.

Sheet Financial Details
B2: Interactive Model of The Total Economic Impact™ Of Microsoft Application Virtualization (App-V)
B4: CONTENTS | E4: KEY
D10: Key | E10: Orange boxes are designated user input cells. Override these values with values that pertain to your organization in order to customize the financial value.
D11: Financial Summary
D12: General Inputs
D13: Benefits | E13: Green boxes are Default Values provided by Forrester Consulting. Forrester applied industry research to knowledge of the vendor solution in order to derive the default values.
D14: Costs
D15: Disclaimers
D16: More Information | E16: Blue boxes are Calculated Values and are not changeable.
B36: GENERAL INPUTS | L36: Ý Return To Top
D39: Enter your company data here:
D40: Number of seats (MDOP) | E40: 10000 | F40: Typically, the number of information workers in the organization.
D41: Number of servers for App-V Admin | E41: 3 | F41: This number will range from 6 to 0. If App-V is integrated with existing software systems, or if servers are re-purposed, then this hardware cost would likely be lower -- and potentially even zero.
D42: Hourly compensation per FTE (App-V implementation. PC refresh tasks) | E42: 50 | F42: Hourly rate INCLUDING benefits.
D43: Number of IT staff receiving App-V training | E43: 4 | F43: The number of employees who will attend vendor- or partner-provided courses for learning the ongoing operation of App-V.
D44: Number of FTEs to be reassigned from application management tasks | E44: 2.5 | F44: This amount of labor typically ranges from 1 to 2 FTEs per 100 applications in the enterprise (depending on application complexity, age, dependencies and degree of customization) OR 2 to 4 FTEs per 10,000 seats.
D45: Annual compensation for reassigned FTEs (application management) | E45: 100000 | F45: A starting point for estimating this amount of labor is 1.0 FTE per 25 to 50 applications in a terminal services environment, depending on workload predictability, size of applications, level of application complexity, degree of customization, and type of iWorkers accessing applications (e.g. mobile, office, task, etc.).
D46: Number of FTEs to be reassigned from terminal services application / server tasks | E46: 0.75 | F46: Only applicable in connection with App-V for RDS.
D47: Number of servers removed from terminal services | E47: 30 | F47: When estimating the number of servers that can be made redundant with the implementation of App-V for terminal services, consider the frequency of patches / updates required, the number of incompatibilities with co-resident applications, bandwidth latency and network connectivity, and the type of iWorkers accessing applications (mobile, office, task).
D48: Servers re-purposed for App-V | E48: 20 | F48: This number is roughly the number of branch or satellite locations from which App-V will house application for streaming to local users.
E49: Year 1 | F49: Year 2 | G49: Year 3
D50: Number of new PCs to be deployed | E50: 1500 | F50: 3000 | G50: 3000 | H50: Enter the number of new PCs to be provisioned and provided to to users each year.
B52: FINANCIAL SUMMARY | L52: Ý Return To Top
C56: Summary Financial Results | E56: Original Calculation | G56: Risk-Adjusted Calculation | J56: Learn about risk adjustments
C57: ROI | E57: =AL100 -> 4.549133883 | G57: =$K$100 -> 3.630955454
C58: Payback period (months) | D58: Payback period (months) | E58: =AL101 -> 2.07853211 | G58: =$K$101 -> 2.695716665
C59: Total costs (PV) | E59: =AL96 -> -307685.1991 | G59: =$K$96 -> -311915.1991
C60: Total benefits (PV) | E60: =AL97 -> 1707386.364 | G60: =$K$97 -> 1444465.393
C61: Total (NPV) | E61: =AL98 -> 1399701.165 | G61: =$K$98 -> 1132550.193
I66: In March 2010, Microsoft commissioned Forrester Consulting to examine the total economic impact and potential return on investment (ROI) that enterprises may expect to realize by deploying Microsoft App-V, part of the Microsoft Desktop Optimization Pack (MDOP) suite of desktop and infrastructure management tools. To understand the financial impact of investing in MDOP and deploying App-V, Forrester conducted in-depth interviews with Microsoft customers that have extensive experience with the product and compiled their results and forward-looking expectations into a case study, The Total Economic Impact of Microsoft Application Virtualization (App-V).
I77: In conducting the interviews with Microsoft customers, Forrester found that organizations can achieve significant and quantifiable benefits from App-V in terms of:
I81: 1. Labor cost savings associated with software and infrastructure management
I82: 2. Hardware cost and footprint reductions
I83: 3. Reduced help desk workloads
I84: 4. Enhanced user productivity
D95: Summary | F95: Initial | G95: Year 1 | H95: Year 2 | I95: Year 3 | J95: Total | K95: Present Value | AE95: Summary | AG95: Initial | AH95: Year 1 | AI95: Year 2 | AJ95: Year 3 | AK95: Total | AL95: Present Value
D96: Total Costs | F96: =F251 -> -63230 | G96: =G251 -> -100000 | H96: -100000 | I96: -100000 | J96: =SUM(F96:I96) -> -363230 | K96: =F96+NPV($F$103,G96:I96) -> -311915.1991 | AE96: Total Costs | AG96: =F298+F312+F325 -> -59000 | AH96: =G285+G298+G312+G325 -> -100000 | AI96: =H285+H298+H312+H325 -> -100000 | AJ96: =I285+I298+I312+I325 -> -100000 | AK96: =J285+J298+J312+J325 -> -359000 | AL96: =K285+K298+K312+K325 -> -307685.1991
D97: Total Benefits | G97: =G123 -> 381468.75 | H97: 646312.5 | I97: 750062.5 | J97: =SUM(G97:I97) -> 1777843.75 | K97: =NPV($F$103,G97:I97) -> 1444465.393 | AE97: Total Benefits | AH97: =F160+F173+F188+F202+F221+F234 -> 440625 | AI97: =G160+G173+G188+G202+G221+G234 -> 768750 | AJ97: =H160+H173+H188+H202+H221+H234 -> 893750 | AK97: =I160+I173+I188+I202+I221+I234 -> 2103125 | AL97: =J160+J173+J188+J202+J221+J234 -> 1707386.364
D98: Total (Risk-Adjusted) | F98: =F97+F96 -> -63230 | G98: 281468.75 | H98: 546312.5 | I98: 650062.5 | J98: 1414613.75 | K98: 1132550.193 | AE98: Total (Original) | AG98: =AG97+AG96 -> -59000 | AH98: 340625 | AI98: 668750 | AJ98: 793750 | AK98: 1744125 | AL98: 1399701.165
D99: Running Total (Risk-Adjusted) | F99: =SUM(F98:F98) -> -63230 | G99: =SUM(F98:G98) -> 218238.75 | H99: =SUM(F98:H98) -> 764551.25 | I99: =SUM(F98:I98) -> 1414613.75 | AE99: Running Total (Orig) | AG99: =SUM(AG98:AG98) -> -59000 | AH99: =SUM(AG98:AH98) -> 281625 | AI99: =SUM(AG98:AI98) -> 950375 | AJ99: =SUM(AG98:AJ98) -> 1744125
D100: ROI | K100: =K98/ABS(K96) -> 3.630955454 | AE100: ROI | AL100: =AL98/ABS(AL96) -> 4.549133883
D101: Payback Period (months) | G101: =IF(AND(G99>=0,F99<0,MIN(H99:$J99)>=0),(ABS(F99)/G98)*12,0) -> 2.695716665 | H101: =IF(AND(H99>=0,G99<0,SUM($G101:G101)=0,MIN(I99:$J99)>=0),((COLUMN()-COLUMN($G101))+ABS(G99)/H98)*12,0) -> 0 | I101: =IF(AND(I99>=0,H99<0,SUM($G101:H101)=0,MIN(J99:$J99)>=0),((COLUMN()-COLUMN($G101))+ABS(H99)/I98)*12,0) -> 0 | K101: =IF(MIN(F99:I99)>=0,0,IF(MAX(G101:I101)>0,MAX(G101:I101),"> "&((COLUMN()-COLUMN($G101)-1)*12))) -> 2.695716665 | AE101: Payback Period (months) | AH101: =IF(AND(AH99>=0,AG99<0,MIN(AI99:$AK99)>=0),(ABS(AG99)/AH98)*12,0) -> 2.07853211 | AI101: =IF(AND(AI99>=0,AH99<0,SUM($AH101:AH101)=0,MIN(AJ99:$AK99)>=0),((COLUMN()-COLUMN($AH101))+ABS(AH99)/AI98)*12,0) -> 0 | AJ101: =IF(AND(AJ99>=0,AI99<0,SUM($AH101:AI101)=0,MIN($AK99:AK99)>=0),((COLUMN()-COLUMN($AH101))+ABS(AI99)/AJ98)*12,0) -> 0 | AL101: =IF(MIN(AG99:AJ99)>=0,0,IF(MAX(AH101:AJ101)>0,MAX(AH101:AJ101),"> "&((COLUMN()-COLUMN($G101)-1)*12))) -> 2.07853211
D103: Financial discount rate | F103: 0.1
B110: TOTAL BENEFITS | L110: Ý Return To Top
D115: Total Benefits | F115: Initial | G115: Year 1 | H115: Year 2 | I115: Year 3 | J115: Total | K115: Present Value
D117: =$C$152 -> Labor savings - application packaging, testing, deployment | G117: =F161 -> 103750 | H117: =G161 -> 207500 | I117: 207500 | J117: =SUM(F117:I117) -> 518750 | K117: =F117+NPV($F$103,G117:I117) -> 421703.6063
D118: =C165 -> Labor cost savings: App-V for RDS | G118: =F174 -> 70500 | H118: =G174 -> 70500 | I118: 70500 | J118: 211500 | K118: 175323.0654
D119: =C178 -> Server consolidation - hardware cost avoidance | G119: =F189 -> 49000 | H119: =G189 -> 0 | I119: 0 | J119: 49000 | K119: 44545.45455
D120: =C193 -> Labor savings - PC refresh cycle | G120: =F203 -> 93375 | H120: =G203 -> 186750 | I120: 186750 | J120: 466875 | K120: 379533.2457
D121: =C207 -> Labor cost savings - Helpdesk | G121: =F222 -> 25937.5 | H121: =G222 -> 72625 | I121: 114125 | J121: 212687.5 | K121: 169344.0083
D122: =C226 -> End-user productivity | G122: =F235 -> 38906.25 | H122: =G235 -> 108937.5 | I122: 171187.5 | J122: 319031.25 | K122: 254016.0124
D123: Total (Risk-Adjusted) | G123: =SUM(G116:G122) -> 381468.75 | H123: =SUM(H116:H122) -> 646312.5 | I123: =SUM(I116:I122) -> 750062.5 | J123: =SUM(J116:J122) -> 1777843.75 | K123: =SUM(K116:K122) -> 1444465.393
L124: d
C152: Labor savings - application packaging, testing, deployment
C154: Time saved from delivering application updates or hotfixes, including changes to existing apps on terminal services and new applications deployed to the desktops
C156: Ref. | D156: Metric | E156: Calculation | F156: Per Period | G156: Year 2 | H156: Year 3 | I156: Total | J156: Present Value
C157: E1 | D157: =+$D$44 -> Number of FTEs to be reassigned from application management tasks | F157: =$E$44 -> 2.5
C158: E2 | D158: =+$D$45 -> Annual compensation for reassigned FTEs (application management) | F158: =$E$45 -> 100000
C159: Et | D159: Labor savings - application packaging, testing, deployment | E159: E1 * E2 | F159: =F157*F158 -> 250000
C160: Eto | D160: Total (Original) | F160: =$F$159*0.5 -> 125000 | G160: =$F$159 -> 250000 | H160: =$F$159 -> 250000 | I160: =SUM(F160:H160) -> 625000 | J160: =NPV($F$103,F160:H160) -> 508076.6341
C161: Etr | D161: Total (Risk Adjusted) | F161: =$F$160*ROUND(AVERAGE(0.5,1,1),2) -> 103750 | G161: =$G$160*ROUND(AVERAGE(0.5,1,1),2) -> 207500 | H161: =$H$160*ROUND(AVERAGE(0.5,1,1),2) -> 207500 | I161: =SUM(F161:H161) -> 518750 | J161: =NPV($F$103,F161:H161) -> 421703.6063
C165: Labor cost savings: App-V for RDS
C167: Labor savings for App-V for RDS Terminal services) only
C169: Ref. | D169: Metric | E169: Calculation | F169: Per Period | G169: Year 2 | H169: Year 3 | I169: Total | J169: Present Value
C170: F1 | D170: =$D$46 -> Number of FTEs to be reassigned from terminal services application / server tasks | F170: =$E$46 -> 0.75
C171: F2 | D171: =$D$45 -> Annual compensation for reassigned FTEs (application management) | F171: =$E$45 -> 100000
C172: Ft | D172: Labor cost savings: App-V for RDS | E172: F1 * F2 | F172: =F170*F171 -> 75000
C173: Fto | D173: Total (Original) | F173: =$F$172 -> 75000 | G173: =$F$172 -> 75000 | H173: =$F$172 -> 75000 | I173: =SUM(F173:H173) -> 225000 | J173: =NPV($F$103,F173:H173) -> 186513.8993
C174: Ftr | D174: Total (Risk Adjusted) | F174: =$F$173*ROUND(AVERAGE(0.8,1,1.03),2) -> 70500 | G174: =$G$173*ROUND(AVERAGE(0.8,1,1.03),2) -> 70500 | H174: =$H$173*ROUND(AVERAGE(0.8,1,1.03),2) -> 70500 | I174: =SUM(F174:H174) -> 211500 | J174: =NPV($F$103,F174:H174) -> 175323.0654
C178: Server consolidation - hardware cost avoidance
C180: Smaller hardware footprint resulting from eliminating application conflicts and need for redundancy
C182: Ref. | D182: Metric | E182: Calculation | F182: Per Period | G182: Year 2 | H182: Year 3 | I182: Total | J182: Present Value
C183: G1 | D183: =$D$47 -> Number of servers removed from terminal services | F183: =$E$47 -> 30
C184: G2 | D184: =$D$48 -> Servers re-purposed for App-V | F184: =$E$48 -> 20
C185: G3 | D185: Number of servers removed (net) | E185: G1-G2 | F185: =F183-F184 -> 10
C186: G4 | D186: Cost per server | F186: 5000
C187: Gt | D187: Server consolidation - hardware cost avoidance | E187: G3 * G4 | F187: =F185*F186 -> 50000
C188: Gto | D188: Total (Original) | F188: =$F$187 -> 50000 | G188: =$F$187*0 -> 0 | H188: =$F$187*0 -> 0 | I188: =SUM(F188:H188) -> 50000 | J188: =NPV($F$103,F188:H188) -> 45454.54545
C189: Gtr | D189: Total (Risk Adjusted) | F189: =$F$188*ROUND(AVERAGE(0.9,1,1.05),2) -> 49000 | G189: =$G$188*ROUND(AVERAGE(0.9,1,1.05),2) -> 0 | H189: =$H$188*ROUND(AVERAGE(0.9,1,1.05),2) -> 0 | I189: =SUM(F189:H189) -> 49000 | J189: =NPV($F$103,F189:H189) -> 44545.45455
C193: Labor savings - PC refresh cycle
C195: Time savings from deployment / provisioning: regression testing, compatibility testing
C197: Ref. | D197: Metric | E197: Calculation | F197: Year 1 | G197: Year 2 | H197: Year 3 | I197: Total | J197: Present Value
C198: H1 | D198: =$D$50 -> Number of new PCs to be deployed | F198: =$E$50 -> 1500 | G198: =$F$50 -> 3000 | H198: =$G$50 -> 3000
C199: H2 | D199: Hours saved per machine on new software installation, image management | F199: 1.5
C200: H3 | D200: =$D$42 -> Hourly compensation per FTE (App-V implementation. PC refresh tasks) | F200: =$E$42 -> 50
C201: Ht | D201: Labor savings - PC refresh cycle | E201: H1 x H2 x H3 | F201: =F198*$F$199*$F$200 -> 112500 | G201: =G198*$F$199*$F$200 -> 225000 | H201: =H198*$F$199*$F$200 -> 225000
C202: Hto | D202: Total (Original) | F202: =$F$201 -> 112500 | G202: =$G$201 -> 225000 | H202: =$H$201 -> 225000 | I202: =SUM(F202:H202) -> 562500 | J202: =NPV($F$103,F202:H202) -> 457268.9707
C203: Htr | D203: Total (Risk Adjusted) | F203: =$F$202*ROUND(AVERAGE(0.5,1,1),2) -> 93375 | G203: =$G$202*ROUND(AVERAGE(0.5,1,1),2) -> 186750 | H203: =$H$202*ROUND(AVERAGE(0.5,1,1),2) -> 186750 | I203: =SUM(F203:H203) -> 466875 | J203: =NPV($F$103,F203:H203) -> 379533.2457
C207: Labor cost savings - Helpdesk
C209: Fewer and shorter calls by eliminating conflicts and a more stable computing environment
C211: Ref. | D211: Metric | E211: Calculation | F211: Year 1 | G211: Year 2 | H211: Year 3 | I211: Total | J211: Present Value
C212: J1 | D212: =+$D$50 -> Number of new PCs to be deployed | E212: Refresh cycle | F212: =$E$50 -> 1500 | G212: =$F$50 -> 3000 | H212: =$G$50 -> 3000
C213: J2 | D213: Shorter call duration (min) | F213: 10
C214: J3 | D214: Number of calls | E214: 1.0 per new PC | F214: =F212*1 -> 1500 | G214: =G212*1 -> 3000 | H214: =H212*1 -> 3000
C215: J4 | D215: Hours | F215: =F214*($F$213/60) -> 250 | G215: =G214*($F$213/60) -> 500 | H215: =H214*($F$213/60) -> 500
C216: J5 | D216: Calls avoided | E216: 2 per PC | F216: =F212*2 -> 3000 | G216: =(F212+G212)*2 -> 9000 | H216: =(F212+G212+H212)*2 -> 15000
C217: J6 | D217: Duration (min) | F217: 20
C218: J7 | D218: Hours | F218: =F216*($F$217/60) -> 1000 | G218: =G216*($F$217/60) -> 3000 | H218: =H216*($F$217/60) -> 5000
C219: J8 | D219: Cost per hour | F219: 25
C220: Jt | D220: Labor cost savings - Helpdesk | E220: (J4 + J7) * J8 | F220: =(F215+F218)*$F$219 -> 31250 | G220: =(G215+G218)*$F$219 -> 87500 | H220: =(H215+H218)*$F$219 -> 137500
C221: Jto | D221: Total (Original) | F221: =$F$220 -> 31250 | G221: =$G$220 -> 87500 | H221: =$H$220 -> 137500 | I221: =SUM(F221:H221) -> 256250 | J221: =NPV($F$103,F221:H221) -> 204028.9256
C222: Jtr | D222: Total (Risk Adjusted) | F222: =$F$221*ROUND(AVERAGE(0.5,1,1),2) -> 25937.5 | G222: =$G$221*ROUND(AVERAGE(0.5,1,1),2) -> 72625 | H222: =$H$221*ROUND(AVERAGE(0.5,1,1),2) -> 114125 | I222: =SUM(F222:H222) -> 212687.5 | J222: =NPV($F$103,F222:H222) -> 169344.0083
C226: End-user productivity
C228: Corresponding benefit in user productivity from fewer and shorter support calls
C230: Ref. | D230: Metric | E230: Calculation | F230: Year 1 | G230: Year 2 | H230: Year 3 | I230: Total | J230: Present Value
C231: K1 | D231: Hours saved - Helpdesk | F231: =F215+F218 -> 1250 | G231: =G215+G218 -> 3500 | H231: =H215+H218 -> 5500
C232: K2 | D232: Avg hourly comp: end-users | F232: =75000/2000 -> 37.5
C233: Kt | D233: End-user productivity | E233: K1*K2*K3 | F233: =F231*F232 -> 46875 | G233: =G231*$F$232 -> 131250 | H233: =H231*$F$232 -> 206250
C234: Kto | D234: Total (Original) | F234: =$F$233 -> 46875 | G234: =$G$233 -> 131250 | H234: =$H$233 -> 206250 | I234: =SUM(F234:H234) -> 384375 | J234: =NPV($F$103,F234:H234) -> 306043.3884
C235: Ktr | D235: Total (Risk Adjusted) | F235: =$F$234*ROUND(AVERAGE(0.5,1,1),2) -> 38906.25 | G235: =$G$234*ROUND(AVERAGE(0.5,1,1),2) -> 108937.5 | H235: =$H$234*ROUND(AVERAGE(0.5,1,1),2) -> 171187.5 | I235: =SUM(F235:H235) -> 319031.25 | J235: =NPV($F$103,F235:H235) -> 254016.0124
B241: TOTAL COSTS | L241: Ý Return To Top
D245: Total Costs | F245: Initial | G245: Year 1 | H245: Year 2 | I245: Year 3 | J245: Total | K245: Present Value
D247: =C279 -> Software license fees | F247: =F286 -> 0 | G247: =G286 -> -100000 | H247: -100000 | I247: -100000 | J247: =SUM(F247:I247) -> -300000 | K247: =F247+NPV($F$103,G247:I247) -> -248685.1991
D248: =C290 -> Hardware costs | F248: =F299 -> -15150 | G248: =G299 -> 0 | H248: 0 | I248: 0 | J248: =SUM(F248:I248) -> -15150 | K248: =F248+NPV($F$103,G248:I248) -> -15150
D249: =C303 -> Implementation labor costs | F249: =F313 -> -28080 | G249: =G313 -> 0 | H249: 0 | I249: 0 | J249: =SUM(F249:I249) -> -28080 | K249: =F249+NPV($F$103,G249:I249) -> -28080
D250: =C317 -> Training fees | F250: =F326 -> -20000 | G250: =G326 -> 0 | H250: 0 | I250: 0 | J250: =SUM(F250:I250) -> -20000 | K250: =F250+NPV($F$103,G250:I250) -> -20000
D251: Total (Risk-Adjusted) | F251: =SUM(F246:F250) -> -63230 | G251: -100000 | H251: -100000 | I251: -100000 | J251: -363230 | K251: -311915.1991
C279: Software license fees
C281: Ref. | D281: Metric | E281: Calculation | F281: Per Period | G281: Year 1 | H281: Year 2 | I281: Year 3 | J281: Total | K281: Present Value
C282: A1 | D282: License Fees | F282: 10
C283: A2 | D283: =$D$40 -> Number of seats (MDOP) | F283: =$E$40 -> 10000
C284: At | D284: Software license fees | E284: A1*A2 | F284: =F282*F283 -> 100000
C285: Ato | D285: Total (Original) | F285: =$F$284*0*-1 -> 0 | G285: =$F$284*-1 -> -100000 | H285: =$F$284*-1 -> -100000 | I285: =$F$284*-1 -> -100000 | J285: =SUM(F285:I285) -> -300000 | K285: =F285+NPV($F$103,G285:I285) -> -248685.1991
C286: Atr | D286: Total (Risk Adjusted) | F286: =$F$285*ROUND(AVERAGE(1,1,1),2) -> 0 | G286: =$G$285*ROUND(AVERAGE(1,1,1),2) -> -100000 | H286: =$H$285*ROUND(AVERAGE(1,1,1),2) -> -100000 | I286: =$I$285*ROUND(AVERAGE(1,1,1),2) -> -100000 | J286: =SUM(F286:I286) -> -300000 | K286: =F286+NPV($F$103,G286:I286) -> -248685.1991
C290: Hardware costs
C292: Two central streaming / distribution servers, one database server
C294: Ref. | D294: Metric | E294: Calculation | F294: Per Period | G294: Year 1 | H294: Year 2 | I294: Year 3 | J294: Total | K294: Present Value
C295: B1 | D295: Cost per server | F295: 5000
C296: B2 | D296: =$D$41 -> Number of servers for App-V Admin | F296: =$E$41 -> 3
C297: Bt | D297: Hardware costs | E297: B1 * B2 | F297: =F295*F296 -> 15000
C298: Bto | D298: Total (Original) | F298: =$F$297*-1 -> -15000 | G298: =$F$297*0*-1 -> 0 | H298: =$F$297*0*-1 -> 0 | I298: =$F$297*0*-1 -> 0 | J298: =SUM(F298:I298) -> -15000 | K298: =F298+NPV($F$103,G298:I298) -> -15000
C299: Btr | D299: Total (Risk Adjusted) | F299: =$F$298*ROUND(AVERAGE(0.98,1,1.05),2) -> -15150 | G299: =$G$298*ROUND(AVERAGE(0.98,1,1.05),2) -> 0 | H299: =$H$298*ROUND(AVERAGE(0.98,1,1.05),2) -> 0 | I299: =$I$298*ROUND(AVERAGE(0.98,1,1.05),2) -> 0 | J299: =SUM(F299:I299) -> -15150 | K299: =F299+NPV($F$103,G299:I299) -> -15150
C303: Implementation labor costs
C305: Deploy App-V infrastructure
C307: Ref. | D307: Metric | E307: Calculation | F307: Per Period | G307: Year 1 | H307: Year 2 | I307: Year 3 | J307: Total | K307: Present Value
C308: C1 | D308: Number of FTEs | F308: 3
C309: C2 | D309: =$D$42 -> Hourly compensation per FTE (App-V implementation. PC refresh tasks) | F309: 50
C310: C3 | D310: Hours | E310: 2 months @ 50% | F310: =8*40*0.5 -> 160
C311: Ct | D311: Implementation labor costs | E311: C1 * C2 * C3 | F311: =F308*F309*F310 -> 24000
C312: Cto | D312: Total (Original) | F312: =$F$311*-1 -> -24000 | G312: =$F$311*0*-1 -> 0 | H312: =$F$311*0*-1 -> 0 | I312: =$F$311*0*-1 -> 0 | J312: =SUM(F312:I312) -> -24000 | K312: =F312+NPV($F$103,G312:I312) -> -24000
C313: Ctr | D313: Total (Risk Adjusted) | F313: =$F$312*ROUND(AVERAGE(1,1,1.5),2) -> -28080 | G313: =$G$312*ROUND(AVERAGE(1,1,1.5),2) -> 0 | H313: =$H$312*ROUND(AVERAGE(1,1,1.5),2) -> 0 | I313: =$I$312*ROUND(AVERAGE(1,1,1.5),2) -> 0 | J313: =SUM(F313:I313) -> -28080 | K313: =F313+NPV($F$103,G313:I313) -> -28080
C317: Training fees
C319: Training for staff who will provide ongoing support for App-V capability
C321: Ref. | D321: Metric | E321: Calculation | F321: Per Period | G321: Year 1 | H321: Year 2 | I321: Year 3 | J321: Total | K321: Present Value
C322: D1 | D322: =$D$43 -> Number of IT staff receiving App-V training | F322: =$E$43 -> 4
C323: D2 | D323: Cost per person | F323: 5000
C324: Dt | D324: Training fees | E324: D1 * D2 | F324: =F322*F323 -> 20000
C325: Dto | D325: Total (Original) | F325: =$F$324*-1 -> -20000 | G325: =$F$324*0*-1 -> 0 | H325: =$F$324*0*-1 -> 0 | I325: =$F$324*0*-1 -> 0 | J325: =SUM(F325:I325) -> -20000 | K325: =F325+NPV($F$103,G325:I325) -> -20000
C326: Dtr | D326: Total (Risk Adjusted) | F326: =$F$325*ROUND(AVERAGE(1,1,1),2) -> -20000 | G326: =$G$325*ROUND(AVERAGE(1,1,1),2) -> 0 | H326: =$H$325*ROUND(AVERAGE(1,1,1),2) -> 0 | I326: =$I$325*ROUND(AVERAGE(1,1,1),2) -> 0 | J326: =SUM(F326:I326) -> -20000 | K326: =F326+NPV($F$103,G326:I326) -> -20000
B333: DISCLAIMERS | L333: Ý Return To Top
C336: Liability and Accuracy
C338: Microsoft commissioned Forrester Consulting to develop this business case model in March 2010 using its proprietary Total Economic Impact™ methodology. The intent is for Microsoft to guide prospects through the questionnaire in order to solicit inputs specific to their business. Microsoft is not permitted to change the calculations or equations. Forrester believes that this analysis is representative of what companies may achieve with App-V based on the inputs provided and any assumptions made. Forrester does not endorse Microsoft or its offerings.
C343: Although great care has been taken to ensure the accuracy and completeness of this model, Microsoft and Forrester Research are unable to accept any legal responsibility for any actions taken on the basis of the information contained herein. The tool is provided ‘AS IS,’ and Forrester and Microsoft make no warranties of any kind. "
B348: MORE INFORMATION | L348: Ý Return To Top
C351: Contact Microsoft
C353: Please contact a Microsoft account representative to learn more about App-V and how it can improve the way your organization does business.
C356: The Total Economic Impact™ Of Microsoft Application Virtualization (App-V)
C361: Use these links to obtain your copy of the Forrester case study and the Webcast:
F363: Webcast: Application Virtualization (App-V)
F365: Forrester case study
